Cogmind - Beta 17 @@@ ROGUE MODE // 2026.07.08 @ 23:01:06 Player: IsAway Result: Destroyed by X-62 Marksman with Pulse Rifle Performance ------------- Evolutions (2) 1000 Regions Visited (4) 800 Robots Destroyed (14) 70 Value Destroyed (211) 211 Prototype IDs (0) 0 Alien Tech Used (0) 0 Bonus (33) 33 TOTAL SCORE: 2114 Bonus ------- Follower Combat Kills 33 Cogmind --------- Core Integrity 0/550 Matter 245/300 Energy 77/100 System Corruption 2% Temperature Cool (9) Movement Core (50) Location -8/Materials Parts ------- > --- POWER (1) -------- (None) > --- PROPULSION (5) --- (None) > --- UTILITY (3) ------ (None) > --- WEAPON (2) ------- (None) > --- INVENTORY (5) ---- Improved Targeting Computer Peak State ------------ > --- POWER ------------ Deuterium Engine > --- PROPULSION ------- Flight Unit Flight Unit > --- UTILITY ---------- Small Storage Unit Improved Terrain Scanner > --- WEAPON ----------- Mining Laser > --- INVENTORY -------- Improved Targeting Computer [Rating: 10] Favorites ----------- Power Ion Engine Engine Ion Engine Propulsion Wheel Leg Improved Aluminum Leg Wheel Wheel Flight Unit Flight Unit Utility Small Storage Unit Device Improved Terrain Scanner Storage Small Storage Unit Weapon Mining Laser Energy Gun EM Pulse Gun Launcher Rocket Launcher Special Weapon Mining Laser Build | -11 -10 -10 -9 -8 ------- Run | Yrd Mat Min Mat Mat Slots Evolved 4 | . . . 2 2 Power . | . . . . . Propulsion 3 | . . . 2 1 Utility 1 | . . . . 1 Weapon . | . . . . . Parts Attached 23 | 7 . 8 1 7 Power 3 | 1 . 1 . 1 Engine 3 | 1 . 1 . 1 Core . | . . . . . Reactor . | . . . . . Propulsion 8 | 3 . 4 . 1 Treads . | . . . . . Leg 1 | . . . . 1 Wheel 5 | 3 . 2 . . Hover . | . . . . . Flight 2 | . . 2 . . Utility 4 | 1 . 1 1 1 Device 2 | . . 1 1 . Storage 2 | 1 . . . 1 Processor . | . . . . . Hackware . | . . . . . Protection . | . . . . . Artifact . | . . . . . Weapon 8 | 2 . 2 . 4 Energy Gun 6 | 1 . 1 . 4 Energy Cannon . | . . . . . Ballistic Gun . | . . . . . Ballistic Cannon . | . . . . . Launcher 1 | . . 1 . . Special Weapon 1 | 1 . . . . Impact Weapon . | . . . . . Slashing Weapon . | . . . . . Piercing Weapon . | . . . . . Special Melee Weapon . | . . . . . Unidentified Prototypes . | . . . . . Parts Lost 12 | . . 8 . 4 Power 1 | . . 1 . . Propulsion 4 | . . 3 . 1 Utility 2 | . . 1 . 1 Weapon 5 | . . 3 . 2 Highest Loss Streak 8 | . . 8 . 2 To Critical Strikes . | . . . . . Average Backups 1 | 1 3 2 1 1 Power . | . . . . . Propulsion . | 1 2 . . . Utility . | . 1 1 1 1 Weapon . | . . . . . Tool/Special . | . . . . . Unused Backups 1 | . . . . 1 Power . | . . . . . Propulsion . | . . . . . Utility 1 | . . . . 1 Weapon . | . . . . . Tool/Special . | . . . . . Average Slot Usage (%) 64 | . 85 77 46 41 Engine 6 | . 14 10 . . Wheel 14 | . 28 23 . . Flight 7 | . . 2 22 12 Device 5 | . . 5 2 7 Storage 13 | . 14 14 11 13 Energy Gun 4 | . 14 5 . . Launcher 1 | . . 2 . . Special Weapon 10 | . 14 12 11 7 Peak Build Rating 10 | 6 6 8 7 10 Average Rating 5 | 5 6 5 4 6 On Entrance 4 | . 6 6 4 7 Avg Prop Armor Cover (%) 8 | . . . . 8 Naked Turns 1 | . . . . 1 Heaviest Build 17 | 13 13 17 7 10 Greatest Support 26 | 26 20 26 10 13 Greatest Overweight (x) 3 | . . 2 . 3 Average Overweight (x) . | . . . . . Largest Inventory Capacity 8 | 8 8 8 8 8 Average Capacity 7 | 7 8 8 8 7 Most Carried 5 | 3 3 5 2 1 Average Carried 1 | 1 3 2 1 1 Final Capacity 8 | 8 8 8 8 5 Final Carried 3 | 3 3 1 1 1 Class Distribution -------------------- 83% | Mutant 16% | Scavenger-Mutant Dominant Class ---------------- Mutant | -10/Materials Mutant | -10/Mines Mutant | -9/Materials Scavenger-Mutant | -8/Materials Resources | -11 -10 -10 -9 -8 ----------- Run | Yrd Mat Min Mat Mat Matter Collected 354 | 270 . 84 . . Remotely . | . . . . . Salvage Created 343 | 220 16 107 . . Parts 26 | 18 1 7 . . Haulers Intercepted . | . . . . . Recyclers Shooed 2 | 1 . 1 . . Parts Field Recycled . | . . . . . Retrieved Matter . | . . . . . Parts Self-Destructed . | . . . . . Prevented . | . . . . . Parts Restored . | . . . . . Kills | -11 -10 -10 -9 -8 ------- Run | Yrd Mat Min Mat Mat Combat Hostiles Destroyed 4 | . . 4 . . Cannons 1 | . . 1 . . AOE 3 | . . 3 . . Classes Destroyed 7 | 3 1 3 . . Worker 3 | 2 . 1 . . Tunneler 6 | 5 . 1 . . Recycler 1 | 1 . . . . Operator 1 | . 1 . . . Grunt 2 | . . 2 . . Demolisher 1 | . . 1 . . Assembled 1 | . . 1 . . Best Kill Streak 4 | 4 1 3 . . Combat Bots Only 2 | . . 2 . . Max Kills in Single Turn 2 | 1 1 2 . . Gunslinging . | . . . . . Exploded 2 | . . 2 . . Melee . | . . . . . Uniques/NPCs Destroyed . | . . . . . Combat | -11 -10 -10 -9 -8 -------- Run | Yrd Mat Min Mat Mat Hostile Shots Fired 90 | . 7 13 6 64 Missed 27 | . 4 . 4 19 Hits 63 | . 3 13 2 45 Melee 28 | . . . . 28 Projectile 35 | . 3 13 2 17 AOE 11 | . . 11 . . Critical Strikes 13 | . . 1 . 12 Damage Taken 1468 | . 32 534 24 878 Core 762 | . 10 188 12 552 Absorbed by Shields . | . . . . . Core Remaining (%) 72 | 100 . 20 97 . Volleys Fired 57 | 28 1 7 4 17 Largest 2 | 2 2 2 1 1 Hottest 140 | 140 140 100 100 100 Shots Fired 66 | 32 2 11 4 17 Gun 41 | 28 1 6 . 6 Cannon . | . . . . . Launcher 4 | . . 4 . . Special 21 | 4 1 1 4 11 Kinetic . | . . . . . Thermal 21 | 4 1 1 4 11 Explosive 4 | . . 4 . . Electromagnetic 41 | 28 1 6 . 6 Robot Hit Streak 5 | 5 3 2 . 2 Robot Miss Streak 3 | 3 . 3 . 2 Penetration Max . | . . . . . Secondary Targets . | . . . . . Shots Hit Robots 27 | 17 1 4 . 5 Core Hits 24 | 8 1 9 . 6 Critical Kills . | . . . . . Critical Parts Destroyed . | . . . . . Critical Strikes . | . . . . . Melee Attacks . | . . . . . Impact . | . . . . . Slashing . | . . . . . Piercing . | . . . . . Sneak Attacks . | . . . . . Combat Hostiles . | . . . . . Follow-up Attacks . | . . . . . Damage Inflicted 734 | 289 23 336 . 86 Guns 340 | 228 16 36 . 60 Cannons . | . . . . . Explosions 313 | 37 . 276 . . Melee . | . . . . . Ramming 33 | . 7 . . 26 Kinetic . | . . . . . Thermal 118 | 61 . 57 . . Explosive 243 | . . 243 . . Electromagnetic 340 | 228 16 36 . 60 Impact . | . . . . . Slashing . | . . . . . Piercing . | . . . . . Highest Corruption 2 | . . . . 2 Average Corruption 1 | . . . . 1 Corruption Purged . | . . . . . Corruption Blocked . | . . . . . Overload Shots . | . . . . . Overflow Damage . | . . . . . Projectiles . | . . . . . Explosions . | . . . . . Melee . | . . . . . Knockbacks . | . . . . . Impact . | . . . . . Kinetic . | . . . . . Secondary . | . . . . . Self-Inflicted Damage 85 | . 3 72 . 10 Shots 2 | . . 2 . . Rammed 12 | . 1 . . 11 Targets Rammed 13 | . 1 . . 12 Kicked 1 | . . . . 1 Crushed . | . . . . . Highest Temperature 40 | 40 40 39 3 . Average Temperature 23 | 28 23 17 1 . Received Heat Transfer 81 | . . 36 . 45 Siege Activations . | . . . . . Martial Activations . | . . . . . Shielding Activations . | . . . . . Robots Disrupted 1 | . . . . 1 Combat Hostiles 1 | . . . . 1 Robots Corrupted . | . . . . . Combat Hostiles . | . . . . . Parts Fried 1 | 1 . . . . Impact Corruptions . | . . . . . Robots Melted . | . . . . . Combat Hostiles . | . . . . . Parts Melted . | . . . . . Heat Transferred 200 | 100 . 100 . . Parts Sabotaged . | . . . . . Parts Stolen . | . . . . . Parts Stripped . | . . . . . Power Chain Reactions 1 | 1 . . . . Alert | -11 -10 -10 -9 -8 ------- Run | Yrd Mat Min Mat Mat Maximum Alert Level . | . . . . . Low Security (%) 100 | 100 100 100 100 100 Level 1 . | . . . . . Level 2 . | . . . . . Level 3 . | . . . . . Level 4 . | . . . . . Level 5 . | . . . . . High Security . | . . . . . Max Security . | . . . . . Peak Influence 69 | 10 12 69 35 3 Initial 6 | . 6 . . 2 Average 6 | 2 4 10 13 . Influence Increases 239 | 40 14 140 39 6 Destroy 0b10 Robot/C 80 | . . 60 20 . Destroy 0b10 Robot/NC 55 | 40 5 10 . . Destroy Leader 30 | . . 20 10 . Allied During Kill 5 | . . . 5 . Successful Hack 8 | . 8 . . . Disable Machine 15 | . . 15 . . Destroy Structure 46 | . 1 35 4 6 Influence Decreases 239 | 30 24 140 32 13 Entered New Map 9 | . 4 . . 5 Time Decay 155 | 30 20 65 32 8 Lost Part 75 | . . 75 . . Squads Dispatched 4 | . . . 1 3 Investigation 1 | . . . 1 . Extermination . | . . . . . Reinforcement 3 | . . . . 3 Assault . | . . . . . Garrison . | . . . . . Intercept . | . . . . . Searches Triggered . | . . . . . Construction Impeded . | . . . . . Haulers Reinforced . | . . . . . Active Scanning Responses . | . . . . . Cargo Convoy Interrupts . | . . . . . Stealth | -11 -10 -10 -9 -8 --------- Run | Yrd Mat Min Mat Mat Distress Signals 2 | . 1 . . 1 Communications Jammed . | . . . . . Distress Signals . | . . . . . Times Spotted 25 | . 5 4 3 13 Peak Tracking Total 7 | . 4 2 2 7 Tactical Retreats . | . . . . . Traps | -11 -10 -10 -9 -8 ------- Run | Yrd Mat Min Mat Mat Traps Triggered . | . . . . . Indirectly . | . . . . . Trap Hack Attempts . | . . . . . Triggered . | . . . . . Disarmed . | . . . . . Reprogrammed . | . . . . . Reused . | . . . . . Traps Extracted . | . . . . . Installed . | . . . . . Triggered . | . . . . . Machines | -11 -10 -10 -9 -8 ---------- Run | Yrd Mat Min Mat Mat Machines Disabled 1 | . . 1 . . Max in Single Turn 1 | . . 1 . . Machines Repaired . | . . . . . Machines Dismantled . | . . . . . Machines Sabotaged . | . . . . . Overloaded Fab Kills . | . . . . . Hacking | -11 -10 -10 -9 -8 --------- Run | Yrd Mat Min Mat Mat Machines Accessed 3 | . 1 . 2 . Terminals 1 | . 1 . . . Fabricators . | . . . . . Repair Stations 1 | . . . 1 . Recycling Units . | . . . . . Scanalyzers 1 | . . . 1 . Garrison Access . | . . . . . Total Hacks 5 | . 1 . 4 . Successful 3 | . 1 . 2 . Failed 2 | . . . 2 . Catastrophic . | . . . . . Database Lockouts . | . . . . . Manual 1 | . 1 . . . Terminals 1 | . 1 . . . Fabricators . | . . . . . Repair Stations 2 | . . . 2 . Recycling Units . | . . . . . Scanalyzers 2 | . . . 2 . Garrison Access . | . . . . . Terminal Hacks 1 | . 1 . . . Branch Access Points 1 | . 1 . . . Fabricator Hacks . | . . . . . Repair Station Hacks . | . . . . . Recycling Unit Hacks . | . . . . . Scanalyzer 2 | . . . 2 . Retrieve Study 2 | . . . 2 . Garrison Access Hacks . | . . . . . Unauthorized Hacks . | . . . . . Terminals . | . . . . . Fabricators . | . . . . . Repair Stations . | . . . . . Recycling Units . | . . . . . Scanalyzers . | . . . . . Garrison Access . | . . . . . Data Cores Recovered 1 | . 1 . . . Used . | . . . . . Hacking Detections 2 | . . . 2 . Full Trace Events 1 | . . . 1 . Feedback Events . | . . . . . Feedback Blocked . | . . . . . Robot Schematics Acquired . | . . . . . Robots Built . | . . . . . Authchips . | . . . . . Time . | . . . . . Total Robot Build Rating . | . . . . . Part Schematics Acquired . | . . . . . Parts Built . | . . . . . Authchips . | . . . . . Time . | . . . . . Total Part Build Rating . | . . . . . Part Studies Acquired 2 | . . . 2 . Parts Repaired . | . . . . . Time . | . . . . . Parts Recycled . | . . . . . Recycled Matter . | . . . . . Retrieved Matter . | . . . . . Retrieved Components . | . . . . . Parts Scanalyzed . | . . . . . Part Schematics Acquired . | . . . . . Parts Damaged . | . . . . . Bothacking | -11 -10 -10 -9 -8 ------------ Run | Yrd Mat Min Mat Mat Used RIF Installer . | . . . . . Robots Hacked . | . . . . . Non-combat . | . . . . . Combat . | . . . . . Robot Hacks Applied . | . . . . . Relay Couplers Released . | . . . . . Fabnet Peak Effective % . | . . . . . Robots Rewired . | . . . . . Allies Hacked . | . . . . . Hacks Repelled . | . . . . . Allies | -11 -10 -10 -9 -8 -------- Run | Yrd Mat Min Mat Mat Total Allies 3 | . . 3 . . Largest Group 3 | . . 3 3 . Highest-Rated Group 40 | . . 40 40 . Highest-Rated Ally 16 | . . 16 16 . Total Orders . | . . . . . Ally Attacks 3 | . . . 3 . Total Damage 41 | . . . 41 . Kills 1 | . . . 1 . Allies Corrupted . | . . . . . Allies Melted . | . . . . . Intel | -11 -10 -10 -9 -8 ------- Run | Yrd Mat Min Mat Mat Active Infowar (turns) 190 | . . 160 13 17 Terrain 30 | . . . 13 17 Seismic 160 | . . 160 . . Robot Analysis Total . | . . . . . Derelict Logs Recovered 1 | . . 1 . . Drone Launches . | . . . . . Drone Recoveries . | . . . . . Exploration | -11 -10 -10 -9 -8 ------------- Run | Yrd Mat Min Mat Mat Turns Passed 909 | 157 47 405 80 220 Spaces Moved 839 | 89 51 453 137 109 Core 41 | 1 . 2 . 38 Treads . | . . . . . Legs 9 | . . . . 9 Wheels 497 | 88 51 358 . . Hover . | . . . . . Flight 292 | . . 93 137 62 Fastest Speed 37 | 50 80 37 37 37 Average Speed 72 | 84 80 75 37 89 Slowest Speed 200 | 90 80 150 37 200 Overloaded Moves . | . . . . . Propulsion Burnouts . | . . . . . Robots Hopped . | . . . . . Potential Cave-ins 2 | . . 2 . . Cave-ins Triggered 1 | . . . . 1 Exploration Rate (%) 26 | 4 9 90 18 10 Regions Visited 4 Branch Regions 1 Pre-discovered Areas . | . . . . . Known Exits Taken 1 | . 1 . . . Unknown Exits Taken 3 | 1 . 1 1 . Scrap Searched 3 | . . 3 . . Spaces Dug 15 | . . . 4 11 Terrain Destroyed 58 | 3 1 39 4 11 Melee . | . . . . . Projectile 17 | 1 1 . 4 11 AOE 41 | 2 . 39 . . Terrain Rammed . | . . . . . Walls Destroyed . | . . . . . Machines Disabled . | . . . . . Actions | -11 -10 -10 -9 -8 --------- Run | Yrd Mat Min Mat Mat Total 1019 | 127 52 500 153 187 Wait 71 | . . 23 11 37 Move 835 | 88 50 452 136 109 Hop . | . . . . . Pick Up 9 | 4 . 4 1 . Fast Attach 17 | 5 . 3 . 9 Attach 8 | 1 . 6 1 . Detach . | . . . . . Swap 2 | 1 . 1 . . Drop 6 | . . 3 . 3 Fire 57 | 28 1 7 4 17 Melee . | . . . . . Ram 12 | . 1 . . 11 Kick 1 | . . . . 1 Crush . | . . . . . Escape Stasis . | . . . . . Rewire 1 | . . 1 . . Trap . | . . . . . Miscellaneous . | . . . . . Route ------- -11/Scrapyard -10/Materials (discovered 2 exits: *Min x2) -10/Mines (discovered 2 exits: *Mat x2) -9/Materials -8/Materials History --------- Turn | Location | Event 21 | -11/Scrapyard | Discovered new exit (range 15) 158 | -11/Scrapyard | Entered Materials 160 | -10/Materials | Discovered new exit (range 16) 192 | -10/Materials | Identified exit to Mines 205 | -10/Materials | Entered Mines 212 | -10/Mines | Discovered new exit (range 14) 224 | -10/Mines | Received a Rocket Launcher from a helpful Derelict 307 | -10/Mines | Build established: Mutant 332 | -10/Mines | Assembled infested the area 373 | -10/Mines | Core integrity fell below 50% 387 | -10/Mines | Met 8R-AWN 407 | -10/Mines | Lost 8 parts (1p3n1u3w) 413 | -10/Mines | Assisted by bots powering up and referring to "LRC-V3" 547 | -10/Mines | Learned Materials trap positions 559 | -10/Mines | Discovered new exit (range 12) 610 | -10/Mines | Entered Materials 610 | -9/Materials | Accompanied by 3 allies 610 | -9/Materials | Evolved 2 slots: Propulsion x2 611 | -9/Materials | Loaded intel: 21 trap records 685 | -9/Materials | Discovered new exit (range 3) 690 | -9/Materials | Entered another Materials area 690 | -8/Materials | Evolved 2 slots: Propulsion x1, Utility x1 822 | -8/Materials | Crushed by falling debris 892 | -8/Materials | Core integrity fell below 50% 906 | -8/Materials | Core integrity fell below 20% 910 | -8/Materials | Destroyed by X-62 Marksman with Pulse Rifle Last Messages --------------- EM Shotgun severed. Acquired EM Shotgun. EM Shotgun severed. K-01 Serf collects debris. Acquired EM Shotgun. EM Shotgun destroyed. Slammed into C-17 Slicer. Destabilizing: System corrupted (+1). Penetrated by Slug. Slammed into C-17 Slicer. Penetrated by Slug. Slammed into C-17 Slicer. C-17 Slicer reactivates. Slammed into C-17 Slicer. Penetrated by Slug. Slug penetrates Wall. Slammed into C-17 Slicer. Slug penetrates C-17 Slicer. C-17 Slicer suffers critical hit (Destroy). Sml. Storage Unit destroyed. Map ----- +----------------------------------------------------+ | ?????????????????????????????????????????????????? | | ?????????????????????????????????????????????????? | | ?????????????????????????????????????????????????? | | ?????????????????????????????????????????????????? | | ?????????????????????????????????????????????????? | | ?????????????????????????????????????????????????? | | ?????????????????????????????????????????????????? | | ?????????????????????????????????????????????????? | | ?????????????????????????????????????????????????? | | ?????????????????????????????????????????????????? | | ?????????????????????????????????????????????????? | | ?????????????????????????????????????????????????? | | ??????????????????????????????? ???????????????? | | ???????????????????????????#### #??????#???????? | | ??????????????????????#####"T"#Y ##?????????????? | | ??????????????????????# ! #?????????????? | | ?????????????????????#" x #?????????????? | | ?????????????????????#T x #?????????????? | | ??????????????????????" #?????????????? | | ???????????????###????# o ????????###???? | | ?????????????? ???#!! #?????????# #???# | | ??????????????? ??#!] #?###########???? | | ?????????????????! ?# #?# #???? | | ??????????????????? # ### #??#? | | ????????????????????? + T## #???? | | ??????????????????????# @ #?# #???? | | ??????????????????????# cc #?# #???? | | ??????????????????????# c [[[= ### #???? | | ??????????????????????# [ + #???? | | ??????????????????????# [[ ### #???? | | ??????????????????????# #?####/######???? | | ??????????????????????# #??# ######## | | ??????????????????????#u######T###??# # | | ??????????????????????# ?????###????# # | | ??????????????????????#a????????????# # | | ??????????????????????a ????????????# !! ######## | | ?????????????????????? ]????????#######+#####????? | | ????????????????????? H????????# # = #????? | | ????????????????????? ?????????## # #????? | | ????????????????????? ??????????### * #????? | | ????????????????????##????????????## #????? | | ??????????????????????????????????## ! #????? | | ??????????????????????????????????## #????? | | ?????????????????????????????????### #?#??? | | ?????????????????????????????????# # #??#?? | | ?????????????????????????????????### ! #????? | | ??????????????????????????????????###########????? | | | | | | | +----------------------------------------------------+ Best States ------------- Heat Dissipation 31 Energy Generation 10 Energy Capacity 300 Matter Stores 300 Matter Capacity 300 Sight Range 16 Terrain Scan Range 16 Terrain Scan Density 10 Evasion (%) 62 Item Schematics ----------------- None Robot Schematics ------------------ None Fabricated ------------ Nothing Repaired ---------- Nothing Studied --------- Flight Unit | -9/Materials | Hacked Mining Laser | -9/Materials | Hacked Alien Tech Used ----------------- None Achievements -------------- None Challenges ------------ None Game ------ Seed AlloyVoltaicForcewell Manual? 0 Play Time 00:21:54 Cumulative 14.5 hours Start 2026.07.08 @ 22:39:45 End 2026.07.08 @ 23:01:06 Sessions 1 Manual Loads 0 Difficulty Rogue Special Mode None Game No. 19 Rogue 19 Adventurer 0 Explorer 0 Win Type - Total 0 Types 0/0/0/0/0/0/0/0/0/0 Lore% 17 Gallery% 13 Achievement% 13 Wizard Run 0 Options --------- Layout 1 ASCII 0 Keyboard 0 Movement Mouse Keybinds 0 Fullscreen 1 Font 18/SmallcapsGlow Map View 51x41 Zoom Use 0% Tactical HUD 0 Map Filters NONE Filters NONE Steam 1 RUN: b1e47429-f430-4cb8-9383-5c7bf45f8fbc